[Event "Betsys MČR v online bleskovém šachu 2021"]
[Site "Chess.com"]
[Date "2021.04.17"]
[Round "10"]
[White "Qb1xh8"]
[Black "Koli05"]
[Result "1-0"]
[WhiteElo "2104"]
[BlackElo "1841"]
[TimeControl "180+1"]
[EndTime "10:39:56 PDT"]
[Termination "Uživatel Qb1xh8 zvítězil na čas"]

1. e4 {[%clk 0:03:00.9]} 1... c5 {[%clk 0:02:59.6]} 2. Nf3 {[%clk 0:03:00.9]}
2... d6 {[%clk 0:02:59.1]} 3. d4 {[%clk 0:03:01.1]} 3... cxd4 {[%clk 0:02:59.8]}
4. Nxd4 {[%clk 0:03:01.7]} 4... Nf6 {[%clk 0:03:00.3]} 5. Nc3 {[%clk 0:03:02.1]}
5... Nc6 {[%clk 0:03:00.6]} 6. h3 {[%clk 0:03:01.8]} 6... e5 {[%clk 0:02:56.5]}
7. Nb3 {[%clk 0:03:00.9]} 7... Be7 {[%clk 0:02:54.6]} 8. g4 {[%clk 0:03:00.7]}
8... Be6 {[%clk 0:02:39.6]} 9. Bg2 {[%clk 0:02:59.4]} 9... h6 {[%clk 0:02:23.1]}
10. Be3 {[%clk 0:02:57.7]} 10... a5 {[%clk 0:02:19.1]} 11. a4 {[%clk 0:02:57.3]}
11... Nb4 {[%clk 0:02:17.2]} 12. Qd2 {[%clk 0:02:53.9]} 12... d5 {[%clk
0:02:15.7]} 13. Bc5 {[%clk 0:02:34.6]} 13... dxe4 {[%clk 0:01:53.2]} 14. Bxe7
{[%clk 0:02:10.2]} 14... Qxd2+ {[%clk 0:01:45.3]} 15. Kxd2 {[%clk 0:02:11.1]}
15... Kxe7 {[%clk 0:01:45.3]} 16. Nc5 {[%clk 0:02:09.3]} 16... Rad8+ {[%clk
0:01:41.3]} 17. Kc1 {[%clk 0:02:09.1]} 17... b6 {[%clk 0:01:16.6]} 18. Nxe6
{[%clk 0:01:50.3]} 18... Kxe6 {[%clk 0:01:16]} 19. Nxe4 {[%clk 0:01:50.5]} 19...
Rc8 {[%clk 0:01:14.9]} 20. c3 {[%clk 0:01:22.8]} 20... Nd3+ {[%clk 0:01:10.9]}
21. Kc2 {[%clk 0:01:22.6]} 21... Nb4+ {[%clk 0:00:55.7]} 22. Kb3 {[%clk
0:01:22.2]} 22... Nd3 {[%clk 0:00:49.9]} 23. Kc2 {[%clk 0:01:17.9]} 23... Nxe4
{[%clk 0:00:29.8]} 24. Bxe4 {[%clk 0:01:16.9]} 24... Nxf2 {[%clk 0:00:29.7]} 25.
Bf5+ {[%clk 0:01:16]} 25... Ke7 {[%clk 0:00:29.7]} 26. Rhf1 {[%clk 0:01:15.9]}
26... Nxh3 {[%clk 0:00:27]} 27. Bxc8 {[%clk 0:01:10.5]} 27... Rxc8 {[%clk
0:00:26.2]} 28. Rae1 {[%clk 0:01:10.4]} 28... f6 {[%clk 0:00:25.3]} 29. Kd3
{[%clk 0:01:01.3]} 29... Nf4+ {[%clk 0:00:20.9]} 30. Rxf4 {[%clk 0:01:00.7]}
30... Rd8+ {[%clk 0:00:07.8]} 31. Rd4 {[%clk 0:00:59.5]} 1-0

[Event "Betsys MČR v online bleskovém šachu 2021"]
[Site "Chess.com"]
[Date "2021.04.17"]
[Round "10"]
[White "JanBaraCZE"]
[Black "8_olda_8"]
[Result "0-1"]
[WhiteElo "1591"]
[BlackElo "1800"]
[TimeControl "180+1"]
[EndTime "10:39:57 PDT"]
[Termination "Uživatel 8_olda_8 zvítězil na čas"]

1. d4 {[%clk 0:03:00.7]} 1... e6 {[%clk 0:02:54.1]} 2. c4 {[%clk 0:03:00.9]}
2... Nf6 {[%clk 0:02:52.7]} 3. Nc3 {[%clk 0:02:57.8]} 3... d5 {[%clk 0:02:53.2]}
4. cxd5 {[%clk 0:02:56.4]} 4... exd5 {[%clk 0:02:54.1]} 5. Nf3 {[%clk
0:02:55.5]} 5... c6 {[%clk 0:02:53.5]} 6. g3 {[%clk 0:02:53.9]} 6... Bf5 {[%clk
0:02:53]} 7. Bg2 {[%clk 0:02:53]} 7... Bd6 {[%clk 0:02:46.7]} 8. O-O {[%clk
0:02:51]} 8... Nbd7 {[%clk 0:02:40.4]} 9. Bg5 {[%clk 0:02:46.8]} 9... h6 {[%clk
0:02:40.4]} 10. Bxf6 {[%clk 0:02:45.5]} 10... Nxf6 {[%clk 0:02:41.3]} 11. Ne5
{[%clk 0:02:43.7]} 11... Qe7 {[%clk 0:02:37.6]} 12. Nd3 {[%clk 0:02:40.2]} 12...
O-O {[%clk 0:02:34.9]} 13. a3 {[%clk 0:02:36.5]} 13... a5 {[%clk 0:02:34.5]} 14.
Rb1 {[%clk 0:02:34]} 14... Ne4 {[%clk 0:02:29.4]} 15. Nxe4 {[%clk 0:02:31.4]}
15... Bxe4 {[%clk 0:02:30.3]} 16. Bxe4 {[%clk 0:02:27.4]} 16... Qxe4 {[%clk
0:02:31.2]} 17. Nc5 {[%clk 0:02:19.7]} 17... Qe7 {[%clk 0:02:26.1]} 18. b4
{[%clk 0:02:15.1]} 18... axb4 {[%clk 0:02:24.6]} 19. axb4 {[%clk 0:02:13.7]}
19... b6 {[%clk 0:02:25]} 20. Nd3 {[%clk 0:02:09.7]} 20... Ra2 {[%clk
0:02:23.4]} 21. Qe1 {[%clk 0:02:07.1]} 21... Rxe2 {[%clk 0:02:20.7]} 22. Qd1
{[%clk 0:02:04.2]} 22... Re8 {[%clk 0:02:19.6]} 23. Re1 {[%clk 0:02:00.5]} 23...
f6 {[%clk 0:02:10.7]} 24. Rxe2 {[%clk 0:01:16.9]} 24... Qxe2 {[%clk 0:02:10.1]}
25. Qxe2 {[%clk 0:01:16.8]} 25... Rxe2 {[%clk 0:02:11]} 26. Nf4 {[%clk 0:01:15]}
26... Bxf4 {[%clk 0:02:10]} 27. gxf4 {[%clk 0:01:14.9]} 27... Rd2 {[%clk
0:02:06.9]} 28. Re1 {[%clk 0:01:11.5]} 28... Rxd4 {[%clk 0:02:05.8]} 29. Re6
{[%clk 0:01:08.1]} 29... c5 {[%clk 0:02:05.1]} 30. bxc5 {[%clk 0:01:06.2]} 30...
bxc5 {[%clk 0:02:06]} 31. Rc6 {[%clk 0:01:05.3]} 31... c4 {[%clk 0:02:06.1]} 32.
Kg2 {[%clk 0:00:46.3]} 32... Rxf4 {[%clk 0:02:01.8]} 33. Kf1 {[%clk 0:00:44.4]}
33... Rd4 {[%clk 0:01:58.8]} 34. Ke2 {[%clk 0:00:42]} 34... Rd3 {[%clk
0:01:57.4]} 35. f3 {[%clk 0:00:38.5]} 35... h5 {[%clk 0:01:52.9]} 36. f4 {[%clk
0:00:36.7]} 36... f5 {[%clk 0:01:52]} 37. h4 {[%clk 0:00:33.4]} 37... Kf7 {[%clk
0:01:44]} 38. Rc7+ {[%clk 0:00:29.1]} 38... Kg6 {[%clk 0:01:42.6]} 39. Rc6+
{[%clk 0:00:22.9]} 39... Kh7 {[%clk 0:01:42.9]} 40. Rc7 {[%clk 0:00:21.1]} 40...
Kh6 {[%clk 0:01:38.7]} 41. Rc6+ {[%clk 0:00:19.7]} 41... g6 {[%clk 0:01:39.3]}
42. Rc7 {[%clk 0:00:18.8]} 42... Rd4 {[%clk 0:01:34.3]} 0-1

[Event "Betsys MČR v online bleskovém šachu 2021"]
[Site "Chess.com"]
[Date "2021.04.17"]
[Round "10"]
[White "jonasstach"]
[Black "JIDEMONI"]
[Result "1/2-1/2"]
[WhiteElo "2004"]
[BlackElo "1888"]
[TimeControl "180+1"]
[EndTime "10:39:58 PDT"]
[Termination "Remíza opakováním pozice"]

1. Nf3 {[%clk 0:03:00.9]} 1... Nf6 {[%clk 0:02:58.5]} 2. d4 {[%clk 0:03:00.8]}
2... c5 {[%clk 0:02:57.4]} 3. e3 {[%clk 0:02:59.9]} 3... cxd4 {[%clk 0:02:54.3]}
4. exd4 {[%clk 0:03:00.8]} 4... g6 {[%clk 0:02:53.7]} 5. c3 {[%clk 0:03:00.5]}
5... Bg7 {[%clk 0:02:53.9]} 6. Bg5 {[%clk 0:02:59.7]} 6... O-O {[%clk
0:02:53.5]} 7. Bd3 {[%clk 0:02:59.7]} 7... d6 {[%clk 0:02:53.4]} 8. O-O {[%clk
0:02:59.9]} 8... Bg4 {[%clk 0:02:51.1]} 9. Re1 {[%clk 0:02:56.6]} 9... Nc6
{[%clk 0:02:41.9]} 10. h3 {[%clk 0:02:55.6]} 10... Bd7 {[%clk 0:02:36.8]} 11.
Nbd2 {[%clk 0:02:47.1]} 11... h6 {[%clk 0:02:35.9]} 12. Bh4 {[%clk 0:02:45.8]}
12... Kh7 {[%clk 0:02:36.1]} 13. Qc2 {[%clk 0:02:43.4]} 13... Re8 {[%clk
0:02:20.6]} 14. Bc4 {[%clk 0:02:36.5]} 14... e6 {[%clk 0:02:12.3]} 15. Re2
{[%clk 0:02:31.7]} 15... d5 {[%clk 0:02:10.7]} 16. Bd3 {[%clk 0:02:30.3]} 16...
Rc8 {[%clk 0:01:52]} 17. Ne5 {[%clk 0:02:29.4]} 17... Nb4 {[%clk 0:01:44.1]} 18.
Qb1 {[%clk 0:02:21.4]} 18... Nxd3 {[%clk 0:01:43.2]} 19. Qxd3 {[%clk 0:02:22.3]}
19... Rf8 {[%clk 0:01:37.8]} 20. Rae1 {[%clk 0:02:10.5]} 20... Be8 {[%clk
0:01:34]} 21. Qb1 {[%clk 0:02:03.8]} 21... Qc7 {[%clk 0:01:32.5]} 22. f4 {[%clk
0:02:01.1]} 22... Nh5 {[%clk 0:01:22.1]} 23. Rf2 {[%clk 0:01:44.9]} 23... Bf6
{[%clk 0:01:10.4]} 24. Bxf6 {[%clk 0:01:39.1]} 24... Nxf6 {[%clk 0:01:09.4]} 25.
g4 {[%clk 0:01:30.5]} 25... Kg7 {[%clk 0:01:08.9]} 26. Qd1 {[%clk 0:01:21.4]}
26... Qb6 {[%clk 0:01:05.1]} 27. Qb3 {[%clk 0:01:19.2]} 27... Qxb3 {[%clk
0:01:04.3]} 28. axb3 {[%clk 0:01:17.8]} 28... b6 {[%clk 0:01:04.6]} 29. Ra1
{[%clk 0:01:15.6]} 29... a5 {[%clk 0:01:04.6]} 30. Ra3 {[%clk 0:01:00.6]} 30...
Nd7 {[%clk 0:01:01.5]} 31. Nxd7 {[%clk 0:00:55.9]} 31... Bxd7 {[%clk 0:01:00.8]}
32. Nf3 {[%clk 0:00:53.7]} 32... f6 {[%clk 0:00:59.5]} 33. Re2 {[%clk
0:00:50.5]} 33... Kf7 {[%clk 0:00:59.4]} 34. Kf2 {[%clk 0:00:48.5]} 34... Ra8
{[%clk 0:00:56]} 35. Ra1 {[%clk 0:00:48.8]} 35... a4 {[%clk 0:00:54.7]} 36. bxa4
{[%clk 0:00:45.4]} 36... Rxa4 {[%clk 0:00:54.4]} 37. Rxa4 {[%clk 0:00:44.8]}
37... Bxa4 {[%clk 0:00:54.9]} 38. Re1 {[%clk 0:00:41.1]} 38... Ra8 {[%clk
0:00:54.2]} 39. Ra1 {[%clk 0:00:41.5]} 39... Bc6 {[%clk 0:00:54.2]} 40. Rxa8
{[%clk 0:00:39.1]} 40... Bxa8 {[%clk 0:00:55.1]} 41. Ke3 {[%clk 0:00:38.6]}
41... Ke7 {[%clk 0:00:52.8]} 42. b3 {[%clk 0:00:38.3]} 42... Bc6 {[%clk
0:00:51.7]} 43. Nh4 {[%clk 0:00:37.9]} 43... Kf7 {[%clk 0:00:51]} 44. Nf3 {[%clk
0:00:36.8]} 44... Ke7 {[%clk 0:00:50.3]} 45. Nh4 {[%clk 0:00:36.8]} 45... Kf7
{[%clk 0:00:50.3]} 46. Nf3 {[%clk 0:00:37.4]} 46... Ke7 {[%clk 0:00:50.5]}
1/2-1/2

[Event "Betsys MČR v online bleskovém šachu 2021"]
[Site "Chess.com"]
[Date "2021.04.17"]
[Round "10"]
[White "petiva3"]
[Black "Jaja15F"]
[Result "1-0"]
[WhiteElo "1402"]
[BlackElo "1133"]
[TimeControl "180+1"]
[EndTime "10:39:59 PDT"]
[Termination "Uživatel petiva3 zvítězil na čas"]

1. e4 {[%clk 0:03:00.9]} 1... e5 {[%clk 0:02:54.3]} 2. Nf3 {[%clk 0:03:00.8]}
2... Nc6 {[%clk 0:02:52.7]} 3. d4 {[%clk 0:03:00.2]} 3... exd4 {[%clk
0:02:48.7]} 4. Nxd4 {[%clk 0:03:00.3]} 4... Nf6 {[%clk 0:02:46.7]} 5. Nxc6
{[%clk 0:02:59.9]} 5... dxc6 {[%clk 0:02:43.7]} 6. e5 {[%clk 0:03:00.3]} 6...
Qxd1+ {[%clk 0:02:40.8]} 7. Kxd1 {[%clk 0:03:00.6]} 7... Ng4 {[%clk 0:02:38.8]}
8. Ke1 {[%clk 0:02:59.2]} 8... Nxe5 {[%clk 0:02:36]} 9. Bf4 {[%clk 0:02:51.1]}
9... Bd6 {[%clk 0:02:33.8]} 10. Nc3 {[%clk 0:02:42.6]} 10... Be6 {[%clk
0:02:17.6]} 11. Bxe5 {[%clk 0:02:36.3]} 11... Bxe5 {[%clk 0:02:11.5]} 12. Bd3
{[%clk 0:02:36.2]} 12... Bxc3+ {[%clk 0:02:08.8]} 13. bxc3 {[%clk 0:02:36.4]}
13... O-O {[%clk 0:02:04.5]} 14. Ke2 {[%clk 0:02:35.9]} 14... Rfe8 {[%clk
0:02:03.6]} 15. Kd2 {[%clk 0:02:25.3]} 15... Rad8 {[%clk 0:01:59.8]} 16. Rhe1
{[%clk 0:02:25]} 16... c5 {[%clk 0:01:58]} 17. Kc1 {[%clk 0:02:20.6]} 17... c4
{[%clk 0:01:56.6]} 18. Be4 {[%clk 0:02:18]} 18... c6 {[%clk 0:01:55]} 19. Kb2
{[%clk 0:02:17.1]} 19... h6 {[%clk 0:01:46.5]} 20. Rad1 {[%clk 0:02:13.6]} 20...
Rxd1 {[%clk 0:01:43]} 21. Rxd1 {[%clk 0:02:13.8]} 21... f5 {[%clk 0:01:35.6]}
22. Bf3 {[%clk 0:02:12.8]} 22... g5 {[%clk 0:01:25.8]} 23. Rd6 {[%clk 0:02:06]}
23... g4 {[%clk 0:01:22]} 24. Bd1 {[%clk 0:02:05.1]} 24... h5 {[%clk 0:01:14.4]}
25. Rd4 {[%clk 0:01:57.6]} 25... Bd5 {[%clk 0:01:09.2]} 26. f3 {[%clk
0:01:52.2]} 26... Re1 {[%clk 0:00:51.3]} 27. fxg4 {[%clk 0:01:38.3]} 27... fxg4
{[%clk 0:00:43.9]} 28. h3 {[%clk 0:01:33.4]} 28... Bxg2 {[%clk 0:00:38.7]} 29.
hxg4 {[%clk 0:01:33.3]} 29... hxg4 {[%clk 0:00:38.3]} 30. Rxg4+ {[%clk
0:01:31.4]} 30... Kf8 {[%clk 0:00:34.3]} 31. Rxg2 {[%clk 0:01:31.1]} 31... Rxd1
{[%clk 0:00:33.5]} 32. Rg4 {[%clk 0:01:31.1]} 32... b5 {[%clk 0:00:31.1]} 33.
Rg6 {[%clk 0:01:30.8]} 33... Rd5 {[%clk 0:00:20.3]} 34. Rxc6 {[%clk 0:01:30.5]}
34... Ke7 {[%clk 0:00:18.4]} 35. Rc7+ {[%clk 0:01:30.3]} 35... Rd7 {[%clk
0:00:17.8]} 36. Rc5 {[%clk 0:01:30.4]} 36... Rb7 {[%clk 0:00:16.3]} 37. Ka3
{[%clk 0:01:29]} 37... Kd6 {[%clk 0:00:15.7]} 38. Rg5 {[%clk 0:01:26.1]} 38...
Kc7 {[%clk 0:00:12.9]} 39. Kb4 {[%clk 0:01:25.9]} 39... a6 {[%clk 0:00:10.5]}
40. Ka5 {[%clk 0:01:24.9]} 40... Kc6 {[%clk 0:00:05.4]} 41. Rg6+ {[%clk
0:01:24.2]} 41... Kc7 {[%clk 0:00:03.8]} 42. Kxa6 {[%clk 0:01:22.2]} 1-0

[Event "Betsys MČR v online bleskovém šachu 2021"]
[Site "Chess.com"]
[Date "2021.04.17"]
[Round "10"]
[White "Sorcercream"]
[Black "Tah_na_g12"]
[Result "0-1"]
[WhiteElo "1004"]
[BlackElo "1178"]
[TimeControl "180+1"]
[EndTime "10:39:59 PDT"]
[Termination "Uživatel Tah_na_g12 zvítězil na čas"]

1. e4 {[%clk 0:03:00.6]} 1... e5 {[%clk 0:02:52.6]} 2. Nf3 {[%clk 0:03:00.4]}
2... Nc6 {[%clk 0:02:49.5]} 3. Bb5 {[%clk 0:03:00.3]} 3... a6 {[%clk 0:02:48.5]}
4. Ba4 {[%clk 0:03:00]} 4... Bc5 {[%clk 0:02:45.1]} 5. c3 {[%clk 0:02:54.6]}
5... Qf6 {[%clk 0:02:40.5]} 6. O-O {[%clk 0:02:39.6]} 6... h5 {[%clk 0:02:37.8]}
7. Bxc6 {[%clk 0:02:27.8]} 7... dxc6 {[%clk 0:02:33.6]} 8. d4 {[%clk 0:02:27.7]}
8... exd4 {[%clk 0:02:32.6]} 9. cxd4 {[%clk 0:02:23]} 9... Bd6 {[%clk
0:02:31.8]} 10. e5 {[%clk 0:02:22.1]} 10... Qe6 {[%clk 0:02:29.1]} 11. Re1
{[%clk 0:02:16.4]} 11... Be7 {[%clk 0:02:25.1]} 12. Ng5 {[%clk 0:02:01.1]} 12...
Bxg5 {[%clk 0:02:21.3]} 13. Bxg5 {[%clk 0:02:01.9]} 13... Bd7 {[%clk 0:02:17.5]}
14. Nc3 {[%clk 0:02:00.6]} 14... Qg6 {[%clk 0:02:14.3]} 15. Bh4 {[%clk 0:01:36]}
15... Nh6 {[%clk 0:02:02.4]} 16. d5 {[%clk 0:01:30.8]} 16... cxd5 {[%clk
0:02:00.9]} 17. Nxd5 {[%clk 0:01:26.8]} 17... Nf5 {[%clk 0:01:57.6]} 18. Nxc7+
{[%clk 0:01:19]} 18... Kf8 {[%clk 0:01:54.5]} 19. Bg3 {[%clk 0:00:59.8]} 19...
Rc8 {[%clk 0:01:49.2]} 20. Qxd7 {[%clk 0:00:53.6]} 20... Rb8 {[%clk 0:01:40.7]}
21. e6 {[%clk 0:00:49.1]} 21... fxe6 {[%clk 0:01:38.6]} 22. Nxe6+ {[%clk
0:00:45.3]} 22... Kg8 {[%clk 0:01:36.2]} 23. Bxb8 {[%clk 0:00:43.8]} 23... h4
{[%clk 0:01:29.4]} 24. Nf4 {[%clk 0:00:35.9]} 24... Qg5 {[%clk 0:01:27.3]} 25.
Re8+ {[%clk 0:00:27.9]} 25... Kh7 {[%clk 0:01:24.2]} 26. Qe6 {[%clk 0:00:20.5]}
26... Nd4 {[%clk 0:01:16]} 27. Rxh8+ {[%clk 0:00:17.9]} 27... Kxh8 {[%clk
0:01:13.6]} 28. Qe4 {[%clk 0:00:12.1]} 28... Nf5 {[%clk 0:01:07]} 29. Rc1 {[%clk
0:00:09.7]} 29... Kh7 {[%clk 0:01:05.4]} 30. Rc8 {[%clk 0:00:04.3]} 30... Qg4
{[%clk 0:01:01.4]} 31. Rf8 {[%clk 0:00:02.8]} 31... g6 {[%clk 0:00:57.6]} 32.
Rf7+ {[%clk 0:00:02.4]} 32... Kh6 {[%clk 0:00:57]} 33. Rf6 {[%clk 0:00:01.3]}
33... h3 {[%clk 0:00:55.6]} 0-1

[Event "Betsys MČR v online bleskovém šachu 2021"]
[Site "Chess.com"]
[Date "2021.04.17"]
[Round "10"]
[White "KajaOl"]
[Black "jsulc"]
[Result "0-1"]
[WhiteElo "2234"]
[BlackElo "2088"]
[TimeControl "180+1"]
[EndTime "10:40:02 PDT"]
[Termination "Uživatel jsulc zvítězil po vzdání soupeře"]

1. e4 {[%clk 0:03:00.9]} 1... e5 {[%clk 0:02:52.9]} 2. Nf3 {[%clk 0:03:00.5]}
2... Nc6 {[%clk 0:02:49.4]} 3. Bc4 {[%clk 0:03:00.6]} 3... Nf6 {[%clk
0:02:47.8]} 4. d3 {[%clk 0:03:00.7]} 4... Be7 {[%clk 0:02:41.2]} 5. Nbd2 {[%clk
0:03:00.4]} 5... d6 {[%clk 0:02:40.7]} 6. c3 {[%clk 0:02:59.8]} 6... O-O {[%clk
0:02:36]} 7. O-O {[%clk 0:02:59]} 7... Na5 {[%clk 0:02:32.7]} 8. Bb5 {[%clk
0:02:58.7]} 8... c5 {[%clk 0:02:29.3]} 9. Ba4 {[%clk 0:02:56]} 9... Nc6 {[%clk
0:02:26.1]} 10. Re1 {[%clk 0:02:55.4]} 10... Be6 {[%clk 0:02:22.8]} 11. Nf1
{[%clk 0:02:47.9]} 11... a6 {[%clk 0:02:21.4]} 12. Ne3 {[%clk 0:02:43.8]} 12...
b5 {[%clk 0:02:20.5]} 13. Bc2 {[%clk 0:02:43.6]} 13... Rc8 {[%clk 0:02:14.3]}
14. a4 {[%clk 0:02:42.1]} 14... b4 {[%clk 0:02:05.1]} 15. d4 {[%clk 0:02:39.3]}
15... cxd4 {[%clk 0:02:01.3]} 16. cxd4 {[%clk 0:02:38.2]} 16... Nxd4 {[%clk
0:01:58.4]} 17. Nxd4 {[%clk 0:02:37.2]} 17... exd4 {[%clk 0:01:56.6]} 18. Qxd4
{[%clk 0:02:33]} 18... a5 {[%clk 0:01:56.7]} 19. Bd3 {[%clk 0:02:20.9]} 19... g6
{[%clk 0:01:55.8]} 20. Bb5 {[%clk 0:02:15.2]} 20... Rc5 {[%clk 0:01:47]} 21. Bd2
{[%clk 0:02:06.7]} 21... Qb6 {[%clk 0:01:46.7]} 22. Qd3 {[%clk 0:01:57.4]} 22...
Rd8 {[%clk 0:01:46.2]} 23. Rac1 {[%clk 0:01:52.3]} 23... d5 {[%clk 0:01:36.4]}
24. e5 {[%clk 0:01:45.3]} 24... Ne4 {[%clk 0:01:33.3]} 25. Red1 {[%clk
0:01:14.1]} 25... Qc7 {[%clk 0:01:27.1]} 26. Rxc5 {[%clk 0:00:58.6]} 26... Bxc5
{[%clk 0:01:25.9]} 27. f4 {[%clk 0:00:40.1]} 27... f6 {[%clk 0:01:25.7]} 28.
exf6 {[%clk 0:00:33.7]} 28... Qxf4 {[%clk 0:01:26.6]} 29. Rf1 {[%clk 0:00:33.1]}
29... Qg5 {[%clk 0:01:13.1]} 30. Kh1 {[%clk 0:00:30.9]} 30... Nxd2 {[%clk
0:01:11]} 31. f7+ {[%clk 0:00:25.8]} 31... Bxf7 {[%clk 0:01:08.9]} 32. Qxd2
{[%clk 0:00:19.2]} 32... Qxe3 {[%clk 0:01:07.6]} 33. Qd1 {[%clk 0:00:13.5]}
33... d4 {[%clk 0:01:00.5]} 34. Qg4 {[%clk 0:00:12.1]} 34... d3 {[%clk
0:00:57.1]} 35. Rxf7 {[%clk 0:00:11.2]} 35... Kxf7 {[%clk 0:00:56]} 36. Bc4+
{[%clk 0:00:10.8]} 36... Kg7 {[%clk 0:00:55]} 0-1

[Event "Betsys MČR v online bleskovém šachu 2021"]
[Site "Chess.com"]
[Date "2021.04.17"]
[Round "10"]
[White "dnovotny"]
[Black "Dejfos"]
[Result "0-1"]
[WhiteElo "1712"]
[BlackElo "1771"]
[TimeControl "180+1"]
[EndTime "10:40:02 PDT"]
[Termination "Uživatel Dejfos zvítězil matem"]

1. d4 {[%clk 0:03:00.9]} 1... Nf6 {[%clk 0:02:56.9]} 2. Nc3 {[%clk 0:03:01.2]}
2... c5 {[%clk 0:02:56.5]} 3. d5 {[%clk 0:02:52.6]} 3... e5 {[%clk 0:02:53.6]}
4. e4 {[%clk 0:02:43.3]} 4... d6 {[%clk 0:02:53.2]} 5. f4 {[%clk 0:02:42.6]}
5... exf4 {[%clk 0:02:49]} 6. Nf3 {[%clk 0:02:34.2]} 6... g6 {[%clk 0:02:47.4]}
7. Bxf4 {[%clk 0:02:29.7]} 7... Bg7 {[%clk 0:02:47.5]} 8. Bd3 {[%clk 0:02:22.1]}
8... O-O {[%clk 0:02:45.9]} 9. O-O {[%clk 0:02:21.2]} 9... a6 {[%clk 0:02:32.1]}
10. a4 {[%clk 0:02:18.6]} 10... Bg4 {[%clk 0:02:26.7]} 11. b3 {[%clk 0:02:03.9]}
11... Nh5 {[%clk 0:01:59.4]} 12. Bd2 {[%clk 0:02:01]} 12... Bd4+ {[%clk
0:01:56.7]} 13. Kh1 {[%clk 0:01:57]} 13... Nd7 {[%clk 0:01:37.1]} 14. Qc1 {[%clk
0:01:12.2]} 14... Bg7 {[%clk 0:01:29.7]} 15. Ra2 {[%clk 0:01:04.9]} 15... Bxf3
{[%clk 0:01:21.6]} 16. Rxf3 {[%clk 0:00:52.2]} 16... Ne5 {[%clk 0:01:19.6]} 17.
Rh3 {[%clk 0:00:44.3]} 17... Ng4 {[%clk 0:01:05.9]} 18. Nd1 {[%clk 0:00:31]}
18... Be5 {[%clk 0:00:41.7]} 19. Be2 {[%clk 0:00:28.2]} 19... Ngf6 {[%clk
0:00:20.2]} 20. Bg5 {[%clk 0:00:26.2]} 20... Qa5 {[%clk 0:00:18.1]} 21. Bxh5
{[%clk 0:00:13.7]} 21... Qe1# {[%clk 0:00:16.2]} 0-1

[Event "Betsys MČR v online bleskovém šachu 2021"]
[Site "Chess.com"]
[Date "2021.04.17"]
[Round "10"]
[White "jankrelina07"]
[Black "jarda1955"]
[Result "0-1"]
[WhiteElo "1632"]
[BlackElo "2004"]
[TimeControl "180+1"]
[EndTime "10:40:05 PDT"]
[Termination "Uživatel jarda1955 zvítězil po vzdání soupeře"]

1. d4 {[%clk 0:03:00.9]} 1... Nf6 {[%clk 0:02:58.7]} 2. Bf4 {[%clk 0:03:00.7]}
2... c5 {[%clk 0:02:55.1]} 3. dxc5 {[%clk 0:02:56.7]} 3... Qa5+ {[%clk
0:02:47.9]} 4. c3 {[%clk 0:02:50.4]} 4... Qxc5 {[%clk 0:02:46.3]} 5. Nf3 {[%clk
0:02:49.6]} 5... d5 {[%clk 0:02:44.9]} 6. e3 {[%clk 0:02:48.9]} 6... Nc6 {[%clk
0:02:44.2]} 7. Nbd2 {[%clk 0:02:46.4]} 7... Bg4 {[%clk 0:02:41.2]} 8. Qc2 {[%clk
0:02:42.7]} 8... e6 {[%clk 0:02:35.4]} 9. a3 {[%clk 0:02:40]} 9... Be7 {[%clk
0:02:30.3]} 10. Nb3 {[%clk 0:02:39.1]} 10... Qb6 {[%clk 0:02:27.6]} 11. Nbd2
{[%clk 0:02:29.3]} 11... O-O {[%clk 0:02:25.8]} 12. Bd3 {[%clk 0:02:27.8]} 12...
h6 {[%clk 0:02:07.4]} 13. Bg3 {[%clk 0:02:24.1]} 13... Rfe8 {[%clk 0:02:02.5]}
14. Ne5 {[%clk 0:02:17.9]} 14... Nxe5 {[%clk 0:02:01]} 15. Bxe5 {[%clk
0:02:16.8]} 15... Rac8 {[%clk 0:01:55.7]} 16. Bg3 {[%clk 0:02:13.6]} 16... Bf8
{[%clk 0:01:39.5]} 17. h3 {[%clk 0:02:10.8]} 17... Bh5 {[%clk 0:01:34.2]} 18.
O-O {[%clk 0:02:05.8]} 18... e5 {[%clk 0:01:27.9]} 19. Qc1 {[%clk 0:01:48.4]}
19... Bg6 {[%clk 0:01:15.5]} 20. Bxg6 {[%clk 0:01:46.3]} 20... fxg6 {[%clk
0:01:15.4]} 21. Qb1 {[%clk 0:01:42.8]} 21... g5 {[%clk 0:01:14.1]} 22. Qf5
{[%clk 0:01:36.7]} 22... Qxb2 {[%clk 0:01:02.4]} 23. Nf3 {[%clk 0:01:32.1]}
23... e4 {[%clk 0:01:01.3]} 24. Ne5 {[%clk 0:01:24.3]} 24... Qxc3 {[%clk
0:00:53.4]} 25. Ng6 {[%clk 0:01:18.3]} 25... Qc6 {[%clk 0:00:37.4]} 26. Ne5
{[%clk 0:01:08.5]} 26... Qe6 {[%clk 0:00:36.2]} 27. Qg6 {[%clk 0:00:59.6]} 27...
Bd6 {[%clk 0:00:35.1]} 28. Ng4 {[%clk 0:00:52.7]} 28... Nxg4 {[%clk 0:00:33.1]}
29. hxg4 {[%clk 0:00:52.2]} 29... Qxg6 {[%clk 0:00:31.9]} 30. Bxd6 {[%clk
0:00:50.2]} 30... Qxd6 {[%clk 0:00:30.6]} 31. Rab1 {[%clk 0:00:49.7]} 31... b6
{[%clk 0:00:29.7]} 32. a4 {[%clk 0:00:48.8]} 32... Rc2 {[%clk 0:00:29.1]} 33. a5
{[%clk 0:00:47.8]} 33... bxa5 {[%clk 0:00:28.8]} 34. Ra1 {[%clk 0:00:47.3]}
34... Rf8 {[%clk 0:00:27.7]} 35. Rxa5 {[%clk 0:00:46.1]} 35... Qb6 {[%clk
0:00:25]} 36. Raa1 {[%clk 0:00:45.4]} 36... Qb2 {[%clk 0:00:22.2]} 0-1